[Event "2nd German Women BLS 2024-25"]
[Site "Germany"]
[Date "2025.01.26"]
[Round "4.1"]
[White "Schmidt, Jessica"]
[Black "Arnhold, Steffi"]
[Result "0-1"]
[Annotator "NA RC"]
[ECO "D31"]
[WhiteElo "2210"]
[BlackElo "2152"]
[PlyCount "84"]
[EventDate "2025.01.22"]
[EventType "team-tourn"]
[EventCountry "GER"]
[SourceTitle "playchess.com"]
[Source "ChessBase"]
[SourceQuality "1"]
[TimeControl "40/5400+30:1800+30"]

1. d4 {[%emt 0:00:01]} d5 {[%emt 0:00:04]} 2. c4 {[%emt 0:00:07]} e6 {[%emt 0:00:06]} 3. Nc3 {[%emt 0:00:18]} c6 {[%emt 0:00:17]} 4. e4 {[%emt 0:03:27]} dxe4 {[%emt 0:00:44]} 5. Nxe4 {[%emt 0:01:34]} Bb4+ {[%emt 0:00:20]} 6. Bd2 {[%emt 0:00:09]} Qxd4 {[%emt 0:00:34]} 7. Bxb4 {[%emt 0:00:09]} Qxe4+ {[%emt 0:00:03]} 8. Be2 {[%emt 0:00:51]} Na6 {[%emt 0:21:51]} 9. Ba5 {[%emt 0:01:39]} Bd7 {[%emt 0:11:47]} 10. Qd6 {[%emt 0:04:17]} b6 {[%emt 0:03:23]} 11. O-O-O {[%emt 0:08:43]} Rd8 {[%emt 0:07:31]} 12. Bc3 {[%emt 0:00:47]} Nf6 {[%emt 0:09:43]} 13. Rd2 {[%emt 0:28:52]} Qxg2 {[%emt 0:13:32]} 14. Bf3 {[%emt 0:00:49]} Qf1+ {[%emt 0:00:16]} 15. Kc2 {[%emt 0:01:25]} Qxc4 {[%emt 0:00:41]} 16. Ne2 {[%emt 0:00:41]} Ne4 {[%emt 0:05:36]} 17. Bxe4 {[%emt 0:02:53]} Qxe4+ {[%emt 0:00:17]} 18. Qd3 {[%emt 0:00:33]} Nc5 {[%emt 0:11:09]} 19. Qxe4 {[%emt 0:01:23]} Nxe4 {[%emt 0:00:06]} 20. Rd4 {[%emt 0:00:15]} Nxc3 {[%emt 0:00:31]} 21. bxc3 {[%emt 0:00:43]} c5 {[%emt 0:00:21]} 22. Rg4 {[%emt 0:00:58]} Bc6 {[%emt 0:01:23]} 23. Re1 {[%emt 0:00:05]} Ke7 {[%emt 0:01:37]} 24. Ng3 {[%emt 0:00:19]} g6 {[%emt 0:00:55]} 25. h4 {[%emt 0:00:06]} h5 {[%emt 0:00:30]} 26. Rf4 {[%emt 0:01:37]} f5 {[%emt 0:03:12]} 27. Nf1 {[%emt 0:09:47]} Be4+ {[%emt 0:02:07]} 28. Kb3 {[%emt 0:01:10]} e5 {[%emt 0:00:34]} 29. Rfxe4 {[%emt 0:00:06]} fxe4 {[%emt 0:00:07]} 30. Rxe4 {[%emt 0:00:05]} Kf6 {[%emt 0:01:26]} 31. Ne3 {[%emt 0:00:12]} Rd2 {[%emt 0:02:11]} 32. f4 {[%emt 0:00:23]} exf4 {[%emt 0:00:16]} 33. Rxf4+ {[%emt 0:00:08]} Kg7 {[%emt 0:00:24]} 34. Re4 {[%emt 0:01:00]} Rf8 {[%emt 0:00:25]} 35. Nc4 {[%emt 0:00:11]} Rd7 {[%emt 0:01:38]} 36. Re6 {[%emt 0:00:18]} Rf6 {[%emt 0:00:23]} 37. Re8 {[%emt 0:00:18]} b5 {[%emt 0:01:24]} 38. Ne5 {[%emt 0:00:34]} Rc7 {[%emt 0:00:13]} 39. c4 {[%emt 0:02:43]} bxc4+ {[%emt 0:00:20]} 40. Kxc4 {[%emt 0:00:33]} Rf4+ {[%emt 0:00:51]} 41. Kd5 {[%emt 0:30:08]} Rd4+ {[%emt 0:31:24]} 42. Ke6 {[%emt 0:00:29]} c4 {[%emt 0:00:46]} 0-1

[Event "2nd German Women BLS 2024-25"]
[Site "Germany"]
[Date "2025.01.26"]
[Round "4.2"]
[White "Bardorz, Jana"]
[Black "Doll, Rebecca"]
[Result "1/2-1/2"]
[Annotator "NA RC"]
[ECO "C47"]
[WhiteElo "2070"]
[BlackElo "1987"]
[PlyCount "172"]
[EventDate "2025.01.22"]
[EventType "team-tourn"]
[EventCountry "GER"]
[SourceTitle "playchess.com"]
[Source "ChessBase"]
[SourceQuality "1"]
[TimeControl "40/5400+30:1800+30"]

1. e4 {[%emt 0:00:14]} e5 {[%emt 0:00:08]} 2. Nf3 {[%emt 0:00:05]} Nc6 {[%emt 0:00:06]} 3. d4 {[%emt 0:00:20]} exd4 {[%emt 0:00:17]} 4. Nxd4 {[%emt 0:00:13]} Nf6 {[%emt 0:00:22]} 5. Nc3 {[%emt 0:00:23]} Bb4 {[%emt 0:00:10]} 6. Nxc6 {[%emt 0:00:57]} bxc6 {[%emt 0:00:08]} 7. Bd3 {[%emt 0:00:31]} d5 {[%emt 0:00:55]} 8. exd5 {[%emt 0:00:34]} cxd5 {[%emt 0:00:20]} 9. O-O {[%emt 0:00:15]} O-O {[%emt 0:00:09]} 10. h3 {[%emt 0:00:17]} c6 {[%emt 0:06:20]} 11. Qf3 {[%emt 0:00:34]} Bd6 {[%emt 0:12:46]} 12. Ne2 {[%emt 0:05:16]} Nd7 {[%emt 0:09:27]} 13. Bf4 {[%emt 0:05:25]} Bxf4 {[%emt 0:08:12]} 14. Nxf4 {[%emt 0:10:48]} Qf6 {[%emt 0:03:37]} 15. b3 {[%emt 0:06:57]} a5 {[%emt 0:07:12]} 16. Rfe1 {[%emt 0:11:19]} Bb7 {[%emt 0:12:41]} 17. Rad1 {[%emt 0:15:36]} Rfe8 {[%emt 0:04:24]} 18. Re3 {[%emt 0:06:51]} Re5 {[%emt 0:05:34]} 19. Rde1 {[%emt 0:03:58]} Rae8 {[%emt 0:00:59]} 20. Qg3 {[%emt 0:02:12]} g6 {[%emt 0:07:03]} 21. a4 {[%emt 0:04:56]} Kh8 {[%emt 0:01:55]} 22. h4 {[%emt 0:03:37]} R5e7 {[%emt 0:06:19]} 23. h5 {[%emt 0:05:14]} Nf8 {[%emt 0:04:39]} 24. hxg6 {[%emt 0:04:31]} hxg6 {[%emt 0:00:55]} 25. Rxe7 {[%emt 0:03:49]} Rxe7 {[%emt 0:00:05]} 26. Rxe7 {[%emt 0:00:16]} Qxe7 {[%emt 0:00:01]} 27. Nh3 {[%emt 0:03:01]} Ne6 {[%emt 0:02:48]} 28. Qe5+ {[%emt 0:00:16]} Kg8 {[%emt 0:01:54]} 29. Nf4 {[%emt 0:02:03]} Bc8 {[%emt 0:00:23]} 30. c4 {[%emt 0:01:42]} Qc7 {[%emt 0:01:12]} 31. Qxc7 {[%emt 0:00:35]} Nxc7 {[%emt 0:00:02]} 32. cxd5 {[%emt 0:00:51]} cxd5 {[%emt 0:01:06]} 33. Ne2 {[%emt 0:01:33]} Kf8 {[%emt 0:03:42]} 34. Nd4 {[%emt 0:00:42]} Bd7 {[%emt 0:00:07]} 35. Kf1 {[%emt 0:01:15]} Ke7 {[%emt 0:00:17]} 36. Ke2 {[%emt 0:00:13]} Kd6 {[%emt 0:00:23]} 37. Kd2 {[%emt 0:00:24]} Kc5 {[%emt 0:00:58]} 38. Kc3 {[%emt 0:00:28]} Be8 {[%emt 0:00:25]} 39. Nf3 {[%emt 0:00:33]} Ne6 {[%emt 0:00:37]} 40. g3 {[%emt 0:00:45]} Kd6 {[%emt 0:01:14]} 41. Bc2 {[%emt 0:07:56]} Nc5 {[%emt 0:20:15]} 42. b4 {[%emt 0:07:50]} Nxa4+ {[%emt 0:01:51]} 43. Bxa4 {[%emt 0:00:53]} Bxa4 {[%emt 0:00:07]} 44. bxa5 {[%emt 0:00:23]} Bd1 {[%emt 0:04:37]} 45. Ne1 {[%emt 0:04:21]} Be2 {[%emt 0:00:44]} 46. Kd4 {[%emt 0:00:35]} Bg4 {[%emt 0:04:39]} 47. Nd3 {[%emt 0:00:16]} Bf5 {[%emt 0:00:41]} 48. a6 {[%emt 0:03:27]} Kc7 {[%emt 0:00:54]} 49. Nf4 {[%emt 0:00:47]} Kb6 {[%emt 0:00:26]} 50. Nxd5+ {[%emt 0:02:43]} Kxa6 {[%emt 0:00:12]} 51. Ke5 {[%emt 0:00:12]} Kb7 {[%emt 0:00:32]} 52. Kf6 {[%emt 0:00:47]} Be6 {[%emt 0:00:54]} 53. Ne7 {[%emt 0:00:20]} Bb3 {[%emt 0:00:33]} 54. Ng8 {[%emt 0:00:25]} Kc6 {[%emt 0:00:28]} 55. Nh6 {[%emt 0:00:17]} Kd5 {[%emt 0:00:25]} 56. Nxf7 {[%emt 0:00:24]} Ke4 {[%emt 0:00:17]} 57. Ng5+ {[%emt 0:03:56]} Kd3 {[%emt 0:00:06]} 58. Kxg6 {[%emt 0:01:44]} Ke2 {[%emt 0:00:07]} 59. f3 {[%emt 0:01:15]} Kf2 {[%emt 0:00:48]} 60. g4 {[%emt 0:00:12]} Kg3 {[%emt 0:00:22]} 61. Kf5 {[%emt 0:00:24]} Bc2+ {[%emt 0:00:16]} 62. Ke5 {[%emt 0:00:17]} Bb1 {[%emt 0:01:08]} 63. f4 {[%emt 0:02:09]} Kxg4 {[%emt 0:00:12]} 64. Ne4 {[%emt 0:00:20]} Kh5 {[%emt 0:00:59]} 65. f5 {[%emt 0:00:24]} Ba2 {[%emt 0:00:59]} 66. Nc3 {[%emt 0:00:50]} Bf7 {[%emt 0:00:27]} 67. Kf6 {[%emt 0:00:39]} Bc4 {[%emt 0:00:33]} 68. Ke7 {[%emt 0:00:31]} Kg5 {[%emt 0:01:06]} 69. f6 {[%emt 0:00:07]} Kg6 {[%emt 0:00:00]} 70. Ne4 {[%emt 0:00:22]} Ba2 {[%emt 0:00:24]} 71. Nc5 {[%emt 0:00:46]} Bf7 {[%emt 0:00:26]} 72. Ne6 {[%emt 0:00:24]} Bg8 {[%emt 0:01:10]} 73. Nf4+ {[%emt 0:00:45]} Kf5 {[%emt 0:00:00]} 74. Nh5 {[%emt 0:00:28]} Kg6 {[%emt 0:00:22]} 75. Ng7 {[%emt 0:00:18]} Bf7 {[%emt 0:00:06]} 76. Nf5 {[%emt 0:00:38]} Bg8 {[%emt 0:00:26]} 77. Nh4+ {[%emt 0:00:48]} Kg5 {[%emt 0:00:35]} 78. Nf3+ {[%emt 0:00:07]} Kg6 {[%emt 0:00:38]} 79. Ne5+ {[%emt 0:00:16]} Kf5 {[%emt 0:00:20]} 80. Nd7 {[%emt 0:00:27]} Kg6 {[%emt 0:00:34]} 81. Kf8 {[%emt 0:01:04]} Be6 {[%emt 0:00:36]} 82. Ke7 {[%emt 0:00:13]} Bg8 {[%emt 0:00:16]} 83. Kf8 {[%emt 0:00:47]} Be6 {[%emt 0:00:13]} 84. Ke8 {[%emt 0:00:08]} Bxd7+ {[%emt 0:00:10]} 85. Ke7 {[%emt 0:00:11]} Be8 {[%emt 0:00:05]} 86. Kxe8 {[%emt 0:00:05]} Kxf6 {[%emt 0:00:01]} 1/2-1/2

[Event "2nd German Women BLS 2024-25"]
[Site "Germany"]
[Date "2025.01.26"]
[Round "4.3"]
[White "Haug, Mara"]
[Black "Leuchsenring, Christina"]
[Result "1-0"]
[Annotator "NA RC"]
[ECO "B33"]
[WhiteElo "1948"]
[BlackElo "1905"]
[PlyCount "89"]
[EventDate "2025.01.22"]
[EventType "team-tourn"]
[EventCountry "GER"]
[SourceTitle "playchess.com"]
[Source "ChessBase"]
[SourceQuality "1"]
[TimeControl "40/5400+30:1800+30"]

1. e4 {[%emt 0:00:04]} c5 {[%emt 0:00:03]} 2. Nf3 {[%emt 0:00:06]} Nc6 {[%emt 0:00:05]} 3. d4 {[%emt 0:00:06]} cxd4 {[%emt 0:00:07]} 4. Nxd4 {[%emt 0:00:05]} Nf6 {[%emt 0:00:18]} 5. Nc3 {[%emt 0:00:07]} e5 {[%emt 0:00:11]} 6. Ndb5 {[%emt 0:00:04]} d6 {[%emt 0:00:10]} 7. Bg5 {[%emt 0:00:06]} a6 {[%emt 0:00:05]} 8. Na3 {[%emt 0:00:09]} b5 {[%emt 0:00:08]} 9. Bxf6 {[%emt 0:00:08]} gxf6 {[%emt 0:00:05]} 10. Nd5 {[%emt 0:00:06]} f5 {[%emt 0:01:06]} 11. c3 {[%emt 0:00:12]} Bg7 {[%emt 0:01:06]} 12. exf5 {[%emt 0:00:07]} Bxf5 {[%emt 0:00:10]} 13. Nc2 {[%emt 0:00:07]} O-O {[%emt 0:01:23]} 14. Nce3 {[%emt 0:00:05]} Be6 {[%emt 0:00:37]} 15. Bd3 {[%emt 0:00:06]} f5 {[%emt 0:03:13]} 16. O-O {[%emt 0:00:06]} e4 {[%emt 0:09:49]} 17. Bc2 {[%emt 0:00:41]} Ne5 {[%emt 0:13:00]} 18. Qh5 {[%emt 0:13:22]} Bf7 {[%emt 0:07:24]} 19. Qh3 {[%emt 0:02:27]} Qg5 {[%emt 0:05:33]} 20. Qxf5 {[%emt 0:11:00]} Nf3+ {[%emt 0:11:16]} 21. Kh1 {[%emt 0:01:22]} Qh4 {[%emt 0:28:43]} 22. Qf4 {[%emt 0:22:01]} Qxf4 {[%emt 0:02:59]} 23. Nxf4 {[%emt 0:00:27]} Nd2 {[%emt 0:00:30]} 24. Rfd1 {[%emt 0:00:33]} Nc4 {[%emt 0:00:32]} 25. Nxc4 {[%emt 0:05:35]} Bxc4 {[%emt 0:00:03]} 26. g3 {[%emt 0:04:10]} Rae8 {[%emt 0:03:19]} 27. Kg1 {[%emt 0:07:00]} Be5 {[%emt 0:01:55]} 28. Nd5 {[%emt 0:00:13]} Bg7 {[%emt 0:03:00]} 29. Bb3 {[%emt 0:04:59]} Re5 {[%emt 0:02:55]} 30. Ne3 {[%emt 0:02:18]} d5 {[%emt 0:00:21]} 31. Nxd5 {[%emt 0:01:54]} Kh8 {[%emt 0:00:30]} 32. Bxc4 {[%emt 0:01:18]} bxc4 {[%emt 0:00:02]} 33. Ne3 {[%emt 0:00:55]} Rc5 {[%emt 0:00:07]} 34. Rd6 {[%emt 0:01:06]} Rf6 {[%emt 0:03:33]} 35. Rad1 {[%emt 0:01:36]} a5 {[%emt 0:00:22]} 36. R1d5 {[%emt 0:01:57]} Rxd6 {[%emt 0:00:35]} 37. Rxc5 {[%emt 0:00:31]} Kg8 {[%emt 0:02:31]} 38. Nxc4 {[%emt 0:00:42]} Rd1+ {[%emt 0:00:14]} 39. Kg2 {[%emt 0:00:08]} a4 {[%emt 0:00:10]} 40. Ra5 {[%emt 0:00:53]} Bh6 {[%emt 0:01:27]} 41. Re5 {[%emt 0:32:07]} Re1 {[%emt 0:30:39]} 42. Nd6 {[%emt 0:07:34]} Re2 {[%emt 0:00:00]} 43. Rxe4 {[%emt 0:00:00]} Rxb2 {[%emt 0:00:00]} 44. Rxa4 {[%emt 0:00:00]} Bf8 {[%emt 0:00:00]} 45. Ne4 {[%emt 0:00:00]} 1-0

[Event "2nd German Women BLS 2024-25"]
[Site "Germany"]
[Date "2025.01.26"]
[Round "4.4"]
[White "Prinzen, Siri Marleen"]
[Black "Scheynin, Julia"]
[Result "0-1"]
[Annotator "NA RC"]
[ECO "C07"]
[WhiteElo "1819"]
[BlackElo "1965"]
[PlyCount "92"]
[EventDate "2025.01.22"]
[EventType "team-tourn"]
[EventCountry "GER"]
[SourceTitle "playchess.com"]
[Source "ChessBase"]
[SourceQuality "1"]
[TimeControl "40/5400+30:1800+30"]

1. e4 {[%emt 0:00:04]} e6 {[%emt 0:00:39]} 2. d4 {[%emt 0:00:07]} d5 {[%emt 0:00:16]} 3. Nd2 {[%emt 0:00:10]} c5 {[%emt 0:00:04]} 4. Bb5+ {[%emt 0:08:56]} Bd7 {[%emt 0:03:22]} 5. Bxd7+ {[%emt 0:04:55]} Qxd7 {[%emt 0:00:05]} 6. exd5 {[%emt 0:04:24]} Qxd5 {[%emt 0:00:49]} 7. Qf3 {[%emt 0:01:06]} Nf6 {[%emt 0:10:57]} 8. Ne2 {[%emt 0:07:56]} Nc6 {[%emt 0:07:56]} 9. Qxd5 {[%emt 0:07:36]} Nxd5 {[%emt 0:01:13]} 10. dxc5 {[%emt 0:01:55]} Bxc5 {[%emt 0:00:01]} 11. Ne4 {[%emt 0:01:29]} Be7 {[%emt 0:04:19]} 12. O-O {[%emt 0:05:57]} O-O {[%emt 0:02:24]} 13. Bg5 {[%emt 0:04:58]} f6 {[%emt 0:06:28]} 14. Bd2 {[%emt 0:03:03]} Rfd8 {[%emt 0:03:24]} 15. Rfd1 {[%emt 0:05:30]} e5 {[%emt 0:08:21]} 16. c4 {[%emt 0:08:01]} Ndb4 {[%emt 0:09:47]} 17. N2c3 {[%emt 0:09:07]} a5 {[%emt 0:06:20]} 18. Be3 {[%emt 0:06:49]} f5 {[%emt 0:07:15]} 19. Nd2 {[%emt 0:04:19]} Nc2 {[%emt 0:02:57]} 20. Rac1 {[%emt 0:00:44]} Nxe3 {[%emt 0:00:06]} 21. fxe3 {[%emt 0:00:04]} Nb4 {[%emt 0:03:32]} 22. Nf1 {[%emt 0:04:43]} Nd3 {[%emt 0:01:34]} 23. Rc2 {[%emt 0:01:14]} Bc5 {[%emt 0:02:04]} 24. Nd5 {[%emt 0:01:14]} e4 {[%emt 0:00:22]} 25. Ng3 {[%emt 0:00:58]} g6 {[%emt 0:01:37]} 26. Ne2 {[%emt 0:01:33]} Kf7 {[%emt 0:02:32]} 27. a3 {[%emt 0:00:52]} Rac8 {[%emt 0:01:05]} 28. Kf1 {[%emt 0:00:51]} b5 {[%emt 0:02:15]} 29. Nef4 {[%emt 0:01:23]} bxc4 {[%emt 0:07:40]} 30. Rdd2 {[%emt 0:00:31]} Nxf4 {[%emt 0:01:12]} 31. exf4 {[%emt 0:00:28]} Ba7 {[%emt 0:02:25]} 32. Ke2 {[%emt 0:00:46]} Ke6 {[%emt 0:00:44]} 33. Nc7+ {[%emt 0:00:49]} Ke7 {[%emt 0:00:10]} 34. Nd5+ {[%emt 0:00:37]} Kf7 {[%emt 0:00:17]} 35. Nc3 {[%emt 0:03:07]} Rd3 {[%emt 0:00:22]} 36. Nb5 {[%emt 0:00:40]} Bb8 {[%emt 0:00:49]} 37. g3 {[%emt 0:00:21]} Rcd8 {[%emt 0:00:18]} 38. Ke1 {[%emt 0:01:25]} e3 {[%emt 0:01:17]} 39. Rg2 {[%emt 0:01:18]} h6 {[%emt 0:00:47]} 40. Nc3 {[%emt 0:00:00]} g5 {[%emt 0:00:30]} 41. fxg5 {[%emt 0:06:33]} hxg5 {[%emt 0:00:14]} 42. Rg1 {[%emt 0:03:14]} Be5 {[%emt 0:02:20]} 43. Rf1 {[%emt 0:01:57]} f4 {[%emt 0:04:24]} 44. Ne4 {[%emt 0:02:10]} Kg6 {[%emt 0:01:28]} 45. g4 {[%emt 0:02:17]} R8d4 {[%emt 0:03:25]} 46. Nc3 {[%emt 0:01:59]} Rd2 {[%emt 0:01:00]} 0-1

[Event "2nd German Women BLS 2024-25"]
[Site "Germany"]
[Date "2025.01.26"]
[Round "4.5"]
[White "Basovskiy, Jana"]
[Black "Oberhofer, Marie"]
[Result "1/2-1/2"]
[Annotator "NA RC"]
[ECO "B52"]
[WhiteElo "1910"]
[BlackElo "1882"]
[PlyCount "66"]
[EventDate "2025.01.22"]
[EventType "team-tourn"]
[EventCountry "GER"]
[SourceTitle "playchess.com"]
[Source "ChessBase"]
[SourceQuality "1"]
[TimeControl "40/5400+30:1800+30"]

1. e4 {[%emt 0:00:01]} c5 {[%emt 0:00:07]} 2. Nf3 {[%emt 0:00:05]} d6 {[%emt 0:00:04]} 3. Bb5+ {[%emt 0:00:05]} Bd7 {[%emt 0:00:31]} 4. Bxd7+ {[%emt 0:00:04]} Qxd7 {[%emt 0:00:05]} 5. O-O {[%emt 0:00:09]} Nc6 {[%emt 0:00:28]} 6. c3 {[%emt 0:00:49]} g6 {[%emt 0:00:57]} 7. d4 {[%emt 0:02:25]} cxd4 {[%emt 0:00:12]} 8. cxd4 {[%emt 0:00:03]} Bg7 {[%emt 0:00:13]} 9. Nc3 {[%emt 0:05:27]} e6 {[%emt 0:05:14]} 10. Be3 {[%emt 0:02:54]} Nge7 {[%emt 0:00:47]} 11. Rc1 {[%emt 0:01:50]} O-O {[%emt 0:03:30]} 12. Qd2 {[%emt 0:04:58]} Rfc8 {[%emt 0:07:39]} 13. Rfd1 {[%emt 0:16:20]} a6 {[%emt 0:11:55]} 14. Na4 {[%emt 0:19:01]} Qd8 {[%emt 0:04:27]} 15. d5 {[%emt 0:02:31]} Ne5 {[%emt 0:01:26]} 16. Nxe5 {[%emt 0:02:42]} Bxe5 {[%emt 0:04:21]} 17. dxe6 {[%emt 0:03:07]} fxe6 {[%emt 0:01:16]} 18. Nb6 {[%emt 0:01:43]} Rxc1 {[%emt 0:00:22]} 19. Rxc1 {[%emt 0:00:02]} Rb8 {[%emt 0:00:19]} 20. Nc4 {[%emt 0:00:09]} Nc6 {[%emt 0:03:05]} 21. Nxe5 {[%emt 0:17:07]} Nxe5 {[%emt 0:01:13]} 22. Bg5 {[%emt 0:00:06]} Qd7 {[%emt 0:14:21]} 23. Rd1 {[%emt 0:01:42]} Nf7 {[%emt 0:01:55]} 24. Bf4 {[%emt 0:00:53]} Rc8 {[%emt 0:00:55]} 25. h4 {[%emt 0:03:09]} e5 {[%emt 0:04:45]} 26. Bg3 {[%emt 0:02:14]} Qg4 {[%emt 0:01:38]} 27. Re1 {[%emt 0:01:48]} Rc6 {[%emt 0:05:36]} 28. b3 {[%emt 0:06:13]} h5 {[%emt 0:02:01]} 29. Kh2 {[%emt 0:00:55]} Qc8 {[%emt 0:00:22]} 30. Re2 {[%emt 0:00:08]} Kg7 {[%emt 0:04:52]} 31. f3 {[%emt 0:00:25]} Qe6 {[%emt 0:06:00]} 32. Bf2 {[%emt 0:01:28]} Qc8 {[%emt 0:01:50]} 33. Bg3 {[%emt 0:00:59]} Qe6 {[%emt 0:00:57]} 1/2-1/2

[Event "2nd German Women BLS 2024-25"]
[Site "Germany"]
[Date "2025.01.26"]
[Round "4.6"]
[White "Wetzler, Sophia"]
[Black "Juszczak, Anna"]
[Result "1-0"]
[Annotator "NA RC"]
[ECO "C02"]
[WhiteElo "1823"]
[BlackElo "1898"]
[PlyCount "91"]
[EventDate "2025.01.22"]
[EventType "team-tourn"]
[EventCountry "GER"]
[SourceTitle "playchess.com"]
[Source "ChessBase"]
[SourceQuality "1"]
[TimeControl "40/5400+30:1800+30"]

1. e4 {[%emt 0:00:03]} e6 {[%emt 0:01:38]} 2. d4 {[%emt 0:00:16]} d5 {[%emt 0:00:04]} 3. e5 {[%emt 0:00:53]} c5 {[%emt 0:00:44]} 4. c3 {[%emt 0:02:19]} Nc6 {[%emt 0:00:06]} 5. Nf3 {[%emt 0:00:32]} Qb6 {[%emt 0:00:54]} 6. Be2 {[%emt 0:02:41]} cxd4 {[%emt 0:01:39]} 7. cxd4 {[%emt 0:00:33]} Nge7 {[%emt 0:00:27]} 8. Nc3 {[%emt 0:16:41]} Nf5 {[%emt 0:00:49]} 9. Bb5 {[%emt 0:03:30]} Bb4 {[%emt 0:03:39]} 10. Bxc6+ {[%emt 0:06:54]} Qxc6 {[%emt 0:00:10]} 11. Bd2 {[%emt 0:01:13]} Qc4 {[%emt 0:03:35]} 12. Ne2 {[%emt 0:01:46]} Bd7 {[%emt 0:03:16]} 13. b3 {[%emt 0:03:27]} Bxd2+ {[%emt 0:02:42]} 14. Qxd2 {[%emt 0:00:52]} Qa6 {[%emt 0:00:21]} 15. O-O {[%emt 0:01:50]} Bb5 {[%emt 0:00:24]} 16. Rfe1 {[%emt 0:00:16]} O-O {[%emt 0:00:13]} 17. Nf4 {[%emt 0:07:47]} h6 {[%emt 0:01:33]} 18. Qb4 {[%emt 0:10:18]} Rfe8 {[%emt 0:10:40]} 19. Rac1 {[%emt 0:00:52]} Bc6 {[%emt 0:01:28]} 20. Qd2 {[%emt 0:01:44]} Rac8 {[%emt 0:01:06]} 21. Nh5 {[%emt 0:01:30]} Red8 {[%emt 0:20:16]} 22. g4 {[%emt 0:09:44]} Ne7 {[%emt 0:02:43]} 23. g5 {[%emt 0:03:04]} hxg5 {[%emt 0:05:45]} 24. Nxg5 {[%emt 0:01:39]} Ng6 {[%emt 0:00:53]} 25. Re3 {[%emt 0:03:38]} Qb6 {[%emt 0:08:36]} 26. Rh3 {[%emt 0:03:02]} Kf8 {[%emt 0:07:23]} 27. Nxg7 {[%emt 0:01:05]} Be8 {[%emt 0:04:57]} 28. Nh7+ {[%emt 0:03:52]} Ke7 {[%emt 0:01:32]} 29. Qg5+ {[%emt 0:00:16]} f6 {[%emt 0:01:47]} 30. Qxf6+ {[%emt 0:02:05]} Kd7 {[%emt 0:00:29]} 31. Rhc3 {[%emt 0:01:37]} Rxc3 {[%emt 0:02:17]} 32. Rxc3 {[%emt 0:00:07]} Rb8 {[%emt 0:06:31]} 33. Nxe8 {[%emt 0:01:35]} Rxe8 {[%emt 0:03:41]} 34. Qxg6 {[%emt 0:00:13]} Kd8 {[%emt 0:00:53]} 35. Rc8+ {[%emt 0:01:57]} Kxc8 {[%emt 0:00:07]} 36. Qxe8+ {[%emt 0:00:08]} Kc7 {[%emt 0:00:11]} 37. Qe7+ {[%emt 0:00:21]} Kc8 {[%emt 0:00:44]} 38. Qc5+ {[%emt 0:00:50]} Qxc5 {[%emt 0:00:29]} 39. dxc5 {[%emt 0:00:08]} Kd7 {[%emt 0:00:10]} 40. Nf6+ {[%emt 0:00:23]} Kc6 {[%emt 0:02:21]} 41. h4 {[%emt 0:32:23]} d4 {[%emt 0:31:21]} 42. h5 {[%emt 0:00:41]} d3 {[%emt 0:00:04]} 43. Kf1 {[%emt 0:00:06]} Kxc5 {[%emt 0:00:18]} 44. h6 {[%emt 0:00:53]} Kd4 {[%emt 0:00:15]} 45. Ke1 {[%emt 0:01:21]} Kxe5 {[%emt 0:02:05]} 46. h7 {[%emt 0:00:14]} 1-0

[Event "2nd German Women BLS 2024-25"]
[Site "Germany"]
[Date "2025.01.26"]
[Round "4.8"]
[White "Birkholz, Olga"]
[Black "Mueller, Riyanna"]
[Result "0-1"]
[Annotator "NA RC"]
[ECO "D08"]
[WhiteElo "2018"]
[BlackElo "1975"]
[PlyCount "116"]
[EventDate "2025.01.22"]
[EventType "team-tourn"]
[EventCountry "GER"]
[SourceTitle "playchess.com"]
[Source "ChessBase"]
[SourceQuality "1"]
[TimeControl "40/5400+30:1800+30"]

1. d4 {[%emt 0:00:27]} d5 {[%emt 0:00:06]} 2. c4 {[%emt 0:00:06]} e5 {[%emt 0:00:10]} 3. dxe5 {[%emt 0:00:31]} Ne7 {[%emt 0:00:14]} 4. Nf3 {[%emt 0:01:30]} Nbc6 {[%emt 0:05:01]} 5. cxd5 {[%emt 0:05:19]} Qxd5 {[%emt 0:00:06]} 6. Qxd5 {[%emt 0:04:12]} Nxd5 {[%emt 0:00:06]} 7. e4 {[%emt 0:00:11]} Ndb4 {[%emt 0:01:38]} 8. Na3 {[%emt 0:01:11]} Bg4 {[%emt 0:01:24]} 9. Bb5 {[%emt 0:01:13]} O-O-O {[%emt 0:01:55]} 10. Bg5 {[%emt 0:04:20]} Be7 {[%emt 0:10:01]} 11. Bxe7 {[%emt 0:04:33]} Nxe7 {[%emt 0:00:14]} 12. Ng5 {[%emt 0:04:49]} Bh5 {[%emt 0:13:15]} 13. O-O {[%emt 0:11:56]} h6 {[%emt 0:02:05]} 14. Nh3 {[%emt 0:01:02]} a6 {[%emt 0:05:26]} 15. Nf4 {[%emt 0:08:21]} Bg4 {[%emt 0:04:38]} 16. f3 {[%emt 0:12:33]} Bxf3 {[%emt 0:03:17]} 17. Rxf3 {[%emt 0:01:55]} axb5 {[%emt 0:00:06]} 18. Nxb5 {[%emt 0:00:05]} Nec6 {[%emt 0:08:45]} 19. Rc3 {[%emt 0:06:43]} Rhe8 {[%emt 0:01:55]} 20. e6 {[%emt 0:07:59]} fxe6 {[%emt 0:01:25]} 21. a3 {[%emt 0:00:41]} Na6 {[%emt 0:01:55]} 22. Kf2 {[%emt 0:06:16]} Rd2+ {[%emt 0:00:44]} 23. Ke3 {[%emt 0:02:55]} Rxb2 {[%emt 0:00:33]} 24. a4 {[%emt 0:00:01]} g5 {[%emt 0:00:47]} 25. Ne2 {[%emt 0:00:14]} Rd8 {[%emt 0:04:09]} 26. Rf1 {[%emt 0:01:20]} Ne5 {[%emt 0:01:57]} 27. h3 {[%emt 0:00:23]} Rdd2 {[%emt 0:02:56]} 28. Rf2 {[%emt 0:09:05]} Kd7 {[%emt 0:05:15]} 29. Nbd4 {[%emt 0:00:20]} Ke7 {[%emt 0:07:16]} 30. Nf3 {[%emt 0:03:03]} Nxf3 {[%emt 0:00:07]} 31. gxf3 {[%emt 0:00:30]} Rdc2 {[%emt 0:00:20]} 32. Rxc2 {[%emt 0:00:51]} Rxc2 {[%emt 0:00:05]} 33. h4 {[%emt 0:00:12]} Rc4 {[%emt 0:01:30]} 34. hxg5 {[%emt 0:00:19]} hxg5 {[%emt 0:00:07]} 35. Rg2 {[%emt 0:00:34]} Kf6 {[%emt 0:00:52]} 36. e5+ {[%emt 0:01:26]} Kxe5 {[%emt 0:00:21]} 37. Rxg5+ {[%emt 0:00:08]} Kd6 {[%emt 0:00:04]} 38. Nd4 {[%emt 0:01:02]} Rxa4 {[%emt 0:00:25]} 39. Rb5 {[%emt 0:00:17]} Nc5 {[%emt 0:18:50]} 40. Rb2 {[%emt 0:00:32]} c6 {[%emt 0:00:00]} 41. f4 {[%emt 0:03:42]} Ra3+ {[%emt 0:00:00]} 42. Ke2 {[%emt 0:00:26]} b5 {[%emt 0:00:00]} 43. f5 {[%emt 0:02:28]} e5 {[%emt 0:00:00]} 44. Nf3 {[%emt 0:01:15]} Ne4 {[%emt 0:00:00]} 45. Rb4 {[%emt 0:04:34]} Kd5 {[%emt 0:00:00]} 46. Nd2 {[%emt 0:04:53]} Nxd2 {[%emt 0:00:00]} 47. Kxd2 {[%emt 0:00:02]} Rf3 {[%emt 0:00:00]} 48. f6 {[%emt 0:00:16]} Rxf6 {[%emt 0:00:00]} 49. Ke3 {[%emt 0:00:01]} Rf4 {[%emt 0:00:00]} 50. Rb2 {[%emt 0:00:13]} b4 {[%emt 0:00:00]} 51. Rb1 {[%emt 0:00:27]} c5 {[%emt 0:00:00]} 52. Rb2 {[%emt 0:00:06]} Kc4 {[%emt 0:00:00]} 53. Rc2+ {[%emt 0:00:08]} Kb5 {[%emt 0:00:00]} 54. Rb2 {[%emt 0:00:43]} c4 {[%emt 0:00:00]} 55. Rh2 {[%emt 0:00:07]} Rd4 {[%emt 0:00:00]} 56. Rh5 {[%emt 0:00:18]} Rd5 {[%emt 0:00:00]} 57. Ke4 {[%emt 0:00:20]} Rc5 {[%emt 0:00:00]} 58. Rh8 {[%emt 0:00:32]} c3 {[%emt 0:00:00]} 0-1